[Event "FTX Crypto Cup MCCT 2022"]
[Site "Miami"]
[Date "2022.08.11"]
[Round "3.6"]
[White "Firouzja, Alireza"]
[Black "Giri, Anish"]
[Result "1/2-1/2"]
[ECO "C92"]
[WhiteElo "2793"]
[BlackElo "2760"]
[Annotator "TA"]
[PlyCount "132"]
[EventDate "2022.08.10"]
[EventType "tourn"]
[EventCountry "USA"]
[SourceTitle "playchess.com"]
[Source "ChessBase"]
[SourceQuality "1"]
[TimeControl "300+3"]

{[%evp 23,132,8,19,17,19,14,22,0,0,-17,0,-12,10,4,9,9,16,14,8,6,10,0,0,0,0,-30,-31,-30,-38,-20,-36,-26,-31,-35,0,-62,-7,0,56,27,120,123,173,118,114,124,119,97,97,92,97,97,91,96,93,73,81,81,81,81,81,81,81,60,66,51,115,81,143,115,115,82,119,119,119,36,127,8,227,29,54,56,54,0,0,0,0,0,0,0,0,0,0,0,0,0,0,0,0,0,0,0,0,0,0,0,0,0,0,0,0]} 1. e4 {[%emt 0:00:00]} e5 {[%emt 0:00:00]} 2. Nf3 {[%emt 0:00:02]} Nc6 {[%emt 0:00:01]} 3. Bb5 {[%emt 0:00:01]} a6 {[%emt 0:00:00]} 4. Ba4 {[%emt 0:00:01]} Nf6 {[%emt 0:00:01]} 5. O-O {[%emt 0:00:01]} Be7 {[%emt 0:00:00]} 6. d3 {[%emt 0:00:02]} b5 {[%emt 0:00:01]} 7. Bb3 {[%emt 0:00:01]} d6 {[%emt 0:00:01]} 8. c3 {[%emt 0:00:01]} O-O {[%emt 0:00:02]} 9. h3 {[%emt 0:00:00]} Bb7 {[%emt 0:00:03]} 10. Re1 {[%emt 0:00:10]} Na5 {[%emt 0:00:03]} 11. Bc2 {[%emt 0:00:01]} c5 {[%emt 0:00:00]} 12. Nbd2 {[%emt 0:00:08][%cal Bb1d2,Bd2f1,Bf1g3][%mdl 32]} Nc6 {[%emt 0:00:06]} 13. Nf1 {[%emt 0:00:02] C92: Closed Ruy Lopez: 9...Be6, Karpov and Flohr-Zaitsev Variations.} Re8 {[%emt 0:00:00]} 14. Ng3 {[%emt 0:00:07]} h6 {[%emt 0:00:01]} 15. Bd2 {[%emt 0:00:42]} Bf8 {[%emt 0:00:02]} 16. Nh2 {[%emt 0:00:02]} d5 {[%emt 0:00:24]} 17. Ng4 {[%emt 0:00:01]} dxe4 {[%emt 0:00:10]} (17... d4 {feels hotter.} 18. Nf5 Bc8 19. a4 Rb8) 18. dxe4 {[%emt 0:00:05]} Nxg4 {[%emt 0:00:26]} 19. hxg4 {[%emt 0:00:02] [#]} c4 $146 {[%emt 0:00:03]} ({Predecessor:} 19... g6 20. Nf1 Bc8 21. a4 Be6 22. axb5 axb5 23. Rxa8 Qxa8 24. Qe2 c4 25. Ne3 Rd8 {½-½ (35) Wantiez,F (2322)-Sonntag,H (2368) Belgium 2015}) 20. Qe2 {[%emt 0:00:13]} Qf6 {[%emt 0:00:19]} 21. Nf5 {[%emt 0:00:07]} Ne7 {[%emt 0:00:16]} 22. Be3 {[%emt 0:00:07]} g6 {[%emt 0:00:08]} 23. Ng3 {[%emt 0:00:12]} (23. Nxh6+ $2 Bxh6 24. Bxh6 g5 25. Bxg5 Qxg5 $19) 23... Nc6 {[%emt 0:00:16][%cal Oc6d4]} 24. a4 {[%emt 0:00:07] [#]} Nd4 $1 {[%emt 0:00:31]} 25. cxd4 {[%emt 0:00:32]} exd4 {[%emt 0:00:00]} 26. Bd2 {[%emt 0:00:09] Threatens to win with e5.} d3 {[%emt 0:00:14]} 27. Bxd3 {[%emt 0:00:05]} cxd3 {[%emt 0:00:02]} 28. Qxd3 {[%emt 0:00:00]} Rad8 {[%emt 0:00:08]} (28... Qxb2 $2 29. Bc3 Qb3 30. Qd4 Qxc3 31. Qxc3 $18) (28... b4 $5 {[%cal Re8d8]}) 29. Qe3 {[%emt 0:00:53]} (29. Qc3 $11 Qh4 30. axb5 axb5 31. Qa5 (31. Ra7 Rd7 $11)) 29... Qxb2 {[%emt 0:00:40]} (29... b4 $1 $15 30. Bc1 Rc8) 30. Bc3 $11 {[%emt 0:00:12]} Qc2 {[%emt 0:00:01]} (30... Qb3 $1 $11) 31. Rac1 $36 {[%emt 0:00:12][%mdl 2048] White is pushing.} (31. Rec1 $5 {[%cal Rc1c2]} Qb3 32. Rab1 $14) 31... Qd3 {[%emt 0:00:56]} (31... Qxa4 $2 32. Qb6 b4 33. Ba1 $18 (33. Qxb7 $2 bxc3 34. e5 Bg7 $19)) (31... Qb3 $11) 32. Qb6 $16 {[%emt 0:00:02] aiming for Qf6.} Rc8 {[%emt 0:00:23]} (32... b4 $2 33. Bb2 (33. Bxb4 Qd4 $11) 33... Qd6 34. Qxb7 $18) 33. Ba1 {[%emt 0:00:44]} ({And not} 33. Qf6 Rxc3 $1 34. Rxc3 Qd2 $11) (33. Red1 $18 Rxc3 34. Rxd3 Rxc1+ 35. Kh2) 33... Rxc1 {[%emt 0:00:33]} 34. Rxc1 {[%emt 0:00:01] Intending Qf6 and mate.} Qa3 {[%emt 0:00:26]} 35. Rf1 {[%emt 0:00:08]} Qe7 {[%emt 0:00:07]} (35... Bxe4 $2 36. Nxe4 Bg7 37. Nf6+ Kh8 38. Nxe8 $18) 36. axb5 {[%emt 0:00:14]} axb5 {[%emt 0:00:01]} 37. Qxb5 {[%emt 0:00:10]} Bg7 {[%emt 0:00:06] Against Qb2} 38. Bxg7 {[%emt 0:00:06]} Kxg7 {[%emt 0:00:00]} 39. Re1 {[%emt 0:00:27]} Bc8 {[%emt 0:00:04]} 40. f3 {[%emt 0:00:08] White is much more active.} Qa7+ {[%emt 0:00:20]} 41. Kh2 {[%emt 0:00:03]} Qe7 {[%emt 0:00:00] And now ...Qh4+ would win.} 42. Qb2+ {[%emt 0:00:06]} Kg8 {[%emt 0:00:03]} 43. Qf2 {[%emt 0:00:01]} Be6 {[%emt 0:00:02]} 44. e5 {[%emt 0:00:06]} Qh4+ {[%emt 0:00:05]} 45. Kg1 {[%emt 0:00:00]} Qg5 {[%emt 0:00:01]} ({Black should play} 45... Bd5) 46. f4 {[%emt 0:00:09]} Qh4 {[%emt 0:00:01]} (46... Qxg4 $2 47. Ne4 Kf8 48. Nf6 $18) 47. f5 {[%emt 0:00:22]} gxf5 {[%emt 0:00:02]} 48. gxf5 {[%emt 0:00:02]} ({Don't play} 48. Nxf5 Qxf2+ 49. Kxf2 Kh7 $14) 48... Bd5 {[%emt 0:00:01] [#] Prevents Re4.} 49. Qe3 {[%emt 0:00:12]} (49. Ne4 $1 $16 {[%mdl 512]} Qxf2+ 50. Kxf2 Bxe4 51. Rxe4) 49... Qg4 {[%emt 0:00:04] [#]} (49... Kh7 $14) 50. Rf1 {[%emt 0:00:05]} ({White should try} 50. Ne4 $1 $16 {[%cal Re4f6] Nf6+ would kill now.} Bxe4 51. Qxe4 Qxe4 52. Rxe4) 50... h5 $2 {[%emt 0:00:01]} (50... Rb8 $11 {and Black has nothing to worry.} 51. Qf4 Qxf4 52. Rxf4 Re8) 51. Rf2 $2 {[%emt 0:00:04]} ({White must play} 51. Rf4 $18 Qg7 52. e6) 51... h4 {[%emt 0:00:02]} 52. Nf1 {[%emt 0:00:02]} h3 $1 {[%emt 0:00:01][%cal Rh3g2]} 53. Qxh3 {[%emt 0:00:06]} (53. Nh2 $14 Qg7 54. Qxh3 Rxe5 55. Nf1) 53... Qxh3 $11 {[%emt 0:00:01] The position is equal.} 54. gxh3 {[%emt 0:00:00] Hoping for Re2.} Rxe5 $14 {[%emt 0:00:01][%mdl 4096] Endgame KRB-KRN} 55. Kh2 {[%emt 0:00:01]} Kg7 {[%emt 0:00:02]} 56. Ng3 {[%emt 0:00:03]} Kf6 {[%emt 0:00:01]} 57. h4 {[%emt 0:00:01]} Re3 {[%emt 0:00:01]} 58. Kh3 {[%emt 0:00:03]} Bf3 {[%emt 0:00:07]} 59. Ra2 {[%emt 0:00:05]} Ke5 {[%emt 0:00:01]} 60. Ra5+ {[%emt 0:00:03]} Kf4 {[%emt 0:00:05] ( -> ...Bc6)} 61. Ra4+ {[%emt 0:00:03]} Ke5 {[%emt 0:00:00]} 62. Kh2 {[%emt 0:00:04]} Rd3 {[%emt 0:00:01]} 63. Ra5+ {[%emt 0:00:04]} Kf4 {[%emt 0:00:05]} 64. Ra4+ {[%emt 0:00:01]} Ke5 {[%emt 0:00:01]} 65. Ra5+ {[%emt 0:00:00]} Kf4 {[%emt 0:00:01] ...Rd2+ is the strong threat.} 66. Ra4+ {[%emt 0:00:01]} Ke5 {[%emt 0:00:01] Weighted Error Value: White=0.27 (precise) /Black=0.23 (precise)} 1/2-1/2

[Event "FTX Crypto Cup MCCT 2022"]
[Site "Miami"]
[Date "2022.08.11"]
[Round "3.7"]
[White "Firouzja, Alireza"]
[Black "Giri, Anish"]
[Result "1-0"]
[ECO "C84"]
[WhiteElo "2793"]
[BlackElo "2760"]
[Annotator "TA"]
[PlyCount "113"]
[EventDate "2022.08.10"]
[EventType "tourn"]
[EventCountry "USA"]
[SourceTitle "playchess.com"]
[Source "ChessBase"]
[SourceQuality "1"]
[TimeControl "300"]

{[%evp 15,113,6,18,16,10,4,4,6,7,10,22,0,4,0,91,81,92,76,175,49,77,84,76,30,35,65,50,38,38,6,14,10,35,-2,14,-32,0,0,56,0,0,8,40,28,30,26,28,28,30,27,25,30,77,34,30,15,11,11,16,9,35,12,565,557,546,205,680,675,676,679,675,660,4694,618,646,631,683,681,4822,644,29960,1660,1258,656,1043,752,697,666,686,665,911,634,624,608,704,625,4810,595,29997,1103]} 1. e4 {[%emt 0:00:00]} e5 {[%emt 0:01:00]} 2. Nf3 {[%emt 0:00:01]} Nc6 {[%emt 0:00:01]} 3. Bb5 {[%emt 0:00:01][%cal Bf1b5,Bb5a4,Ba4b3,Bb3a2][%mdl 32]} a6 {[%emt 0:00:01]} 4. Ba4 {[%emt 0:00:01]} Nf6 {[%emt 0:00:01]} 5. O-O {[%emt 0:00:00]} Be7 {[%emt 0:00:00]} 6. d3 {[%emt 0:00:01]} b5 {[%emt 0:00:01]} 7. Bb3 {[%emt 0:00:01]} d6 {[%emt 0:00:01]} 8. c3 {[%emt 0:00:00]} O-O {[%emt 0:00:01]} 9. h3 $1 {[%emt 0:00:01][%mdl 4] is recently more successful than 9.Re1. C84: Closed Ruy Lopez: Unusual White 6th moves.} Bb7 {[%emt 0:00:00]} 10. a4 {[%emt 0:00:02]} Na5 {[%emt 0:00:08] [#]} 11. Ba2 $146 {[%emt 0:00:02] The position is equal.} ({Predecessor:} 11. Bc2 c5 12. Re1 Re8 13. Nbd2 Bf8 14. Nf1 g6 15. Ng3 Bg7 16. Nh2 d5 17. Qf3 {1-0 (59) Lechner,M (2000)-Islam,M (1788) London 2016}) 11... c5 {[%emt 0:00:01]} 12. Na3 {[%emt 0:00:02] Inhibits c4.} Qd7 {[%emt 0:00:03]} 13. Bg5 {[%emt 0:00:17]} bxa4 {[%emt 0:00:12]} 14. Nh4 {[%emt 0:00:39]} Rab8 {[%emt 0:00:11]} (14... h6 $11 {remains equal.} 15. Bxf6 Bxf6) 15. Nf5 $16 {[%emt 0:00:04]} Bd8 {[%emt 0:00:00] [#]} 16. f4 $1 {[%emt 0:00:09]} exf4 {[%emt 0:00:08]} (16... Bc6 $16 {was worth a try.}) 17. Rxf4 {[%emt 0:00:09]} (17. Bxf4 $18 Bc7 {[#]} 18. Bh6 $1 {[%mdl 512]} gxh6 19. Qd2) 17... Nb3 {[%emt 0:00:31]} 18. Bxb3 {[%emt 0:00:02]} axb3 {[%emt 0:00:00]} 19. Qf3 {[%emt 0:00:18]} ({Reject} 19. Qxb3 $6 Nh5 20. Qd1 g6 21. Nh6+ Kg7 22. Nf5+ Kh8 23. Bxd8 Rbxd8 $15) (19. Nc4 $16) 19... Ne8 $11 {[%emt 0:00:26]} 20. Bxd8 {[%emt 0:00:11]} Rxd8 {[%emt 0:00:01]} 21. Qg3 {[%emt 0:00:04]} f6 {[%emt 0:00:06]} 22. Raf1 {[%emt 0:00:05][%mdl 1024] White has compensation.} Bc8 {[%emt 0:00:09]} 23. Nc4 {[%emt 0:00:03]} Qb7 {[%emt 0:00:13]} 24. Nce3 {[%emt 0:00:50]} Be6 {[%emt 0:00:06]} 25. R4f3 {[%emt 0:00:30]} (25. Ra1 $11 {feels stronger.}) 25... a5 {[%emt 0:00:10]} (25... Kh8 $5 {[%cal Ra6a5]}) 26. Ra1 {[%emt 0:00:01]} Qc7 {[%emt 0:00:12]} ({Black should play} 26... Ra8 $11) 27. d4 {[%emt 0:00:04]} (27. Nd5 $1 $14 {might be stronger.} Qd7 28. Rxa5) 27... cxd4 {[%emt 0:00:02]} 28. Nxd4 {[%emt 0:00:01] Pair of Knights!} Bf7 {[%emt 0:00:17]} 29. Nd5 {[%emt 0:00:02]} Bxd5 {[%emt 0:00:07]} 30. exd5 {[%emt 0:00:02]} Qc5 {[%emt 0:00:00]} 31. Kh2 {[%emt 0:00:05]} Qxd5 {[%emt 0:00:03]} 32. Rf5 {[%emt 0:00:00]} Qf7 {[%emt 0:00:02]} 33. Rfxa5 {[%emt 0:00:01] Re1 is the strong threat.} Rd7 {[%emt 0:00:01]} (33... g6 $1 $11) 34. Nf5 {[%emt 0:00:04] 0x0.0016826de8b0dp-1022s more active pieces. The black rooks are badly placed.} Kh8 {[%emt 0:00:01]} 35. Re1 {[%emt 0:00:01]} g6 {[%emt 0:00:01]} 36. Nd4 $36 {[%emt 0:00:04][%mdl 2048] White has good play.} Ng7 {[%emt 0:00:01]} 37. Qf3 {[%emt 0:00:02]} d5 {[%emt 0:00:02]} 38. Ra6 {[%emt 0:00:02]} ({Don't play} 38. Nxb3 Rb7 39. Ra3 Nh5 $15) 38... Rb8 $2 {[%emt 0:00:02][%mdl 8192] Loses the game.} (38... Rdd8 $11) 39. Rxf6 $18 {[%emt 0:00:01]} Qg8 {[%emt 0:00:00]} 40. Rf1 $2 {[%emt 0:00:03]} (40. Nc6) 40... Rdd8 $2 {[%emt 0:00:05]} (40... Nh5) 41. Nc6 $1 {[%emt 0:00:01][%csl LRb8,LRd8]} Nf5 {[%emt 0:00:02]} 42. Nxb8 {[%emt 0:00:02]} Rxb8 {[%emt 0:00:01]} 43. g4 {[%emt 0:00:02]} Qd8 {[%emt 0:00:01]} 44. Re6 {[%emt 0:00:04]} (44. Qf4 $142 Ra8 45. Qe5 (45. gxf5 Qxf6 46. fxg6 Qxf4+ 47. Rxf4 Ra2 $11)) 44... Ng7 {[%emt 0:00:05]} 45. Re5 {[%emt 0:00:03]} Qd6 {[%emt 0:00:02]} 46. Qxd5 {[%emt 0:00:01]} Qc7 {[%emt 0:00:01]} 47. Qc5 {[%emt 0:00:02]} (47. Rf7 $142 Qd8 48. Qxd8+ Rxd8 49. Ree7) 47... Qd8 {[%emt 0:00:02]} 48. Rd5 {[%emt 0:00:01]} (48. Re7 $142 h6 49. Rff7 Qd2+ 50. Rf2 Qg5 51. Qxg5 hxg5 52. Rff7 Rg8 53. c4) 48... Qe8 {[%emt 0:00:01]} 49. Qf2 {[%emt 0:00:01]} Ra8 {[%emt 0:00:05]} 50. Re1 {[%emt 0:00:01]} Qb8+ {[%emt 0:00:01]} 51. Rde5 {[%emt 0:00:01]} Qg8 {[%emt 0:00:00]} 52. Qe2 {[%emt 0:00:01]} Ra2 {[%emt 0:00:02]} 53. Re4 {[%emt 0:00:02] Threatens to win with Re7.} Qb8+ {[%emt 0:00:01]} 54. Kg2 {[%emt 0:00:01] aiming for Re7.} Qc8 {[%emt 0:00:00]} 55. Rf1 {[%emt 0:00:01] Black must now prevent Re7.} Kg8 {[%emt 0:00:00]} 56. Rd4 {[%emt 0:00:01]} (56. Re7 $142 {White threatens Qe5 and mate.} Ne6 57. Qf2 Qc6+ 58. Kg1) 56... Qxc3 {[%emt 0:00:05]} 57. Rd8+ {[%emt 0:00:01] Weighted Error Value: White=0.65/Black=0.60} 1-0

[Event "FTX Crypto Cup MCCT 2022"]
[Site "Miami"]
[Date "2022.08.11"]
[Round "4.1"]
[White "Carlsen, Magnus"]
[Black "Le, Quang Liem"]
[Result "1/2-1/2"]
[ECO "C56"]
[WhiteElo "2864"]
[BlackElo "2722"]
[Annotator "TA"]
[PlyCount "73"]
[EventDate "2022.08.10"]
[EventType "tourn"]
[EventCountry "USA"]
[SourceTitle "playchess.com"]
[Source "ChessBase"]
[SourceQuality "1"]
[TimeControl "900+10"]

{[%evp 23,73,0,0,0,7,0,10,21,9,15,72,73,66,57,60,20,11,14,25,36,27,-60,-54,-63,-63,-69,-60,-57,-50,-54,-70,-61,-61,-56,0,0,0,0,0,0,0,0,0,0,0,0,0,0,0,0,0,0]} 1. e4 {[%emt 0:00:00]} e5 {[%emt 0:00:00]} 2. Nf3 {[%emt 0:00:19]} Nc6 {[%emt 0:00:04]} 3. Bc4 {[%emt 0:00:01]} Nf6 {[%emt 0:00:01][%cal Bg8f6,Bf6e4,Be4c5][%mdl 32]} 4. d4 {[%emt 0:00:05]} exd4 {[%emt 0:00:11]} 5. e5 {[%emt 0:00:01]} d5 {[%emt 0:00:02]} 6. Bb5 {[%emt 0:00:02]} Ne4 {[%emt 0:00:14]} 7. Nxd4 {[%emt 0:00:03]} Bd7 {[%emt 0:00:01]} 8. Bxc6 {[%emt 0:00:09]} bxc6 {[%emt 0:00:02]} 9. O-O {[%emt 0:00:01]} Be7 {[%emt 0:00:12]} 10. f3 {[%emt 0:00:35]} Nc5 {[%emt 0:00:04]} 11. f4 {[%emt 0:00:30]} O-O {[%emt 0:00:04]} 12. f5 {[%emt 0:01:10]} Ne4 {[%emt 0:00:12]} 13. Nb3 {[%emt 0:01:30] C56: Two Knights: 4 d4 exd4 5 0-0 Nxe4.} Re8 {[%emt 0:00:32]} 14. N1d2 $1 {[%emt 0:00:19] Black must now prevent Nxe4.} Bf8 {[%emt 0:01:13]} 15. Nxe4 {[%emt 0:00:04]} dxe4 {[%emt 0:00:00]} 16. Qd4 {[%emt 0:00:02] [#]} Qe7 $146 {[%emt 0:01:30] [#]} (16... Bc8 $11) ({Predecessor:} 16... Bc8 17. Qc3 Qd5 18. Bf4 Bxf5 19. Rad1 Qb5 20. Rd4 c5 21. Rc4 Be6 22. Rxe4 Rab8 {0-1 (51) Vocaturo,D (2598)-Gledura,B (2605) Barcelona 2017}) 17. f6 $1 $16 {[%emt 0:01:57]} gxf6 {[%emt 0:01:04]} 18. exf6 {[%emt 0:00:03]} Qd6 {[%emt 0:00:08]} 19. Qf2 {[%emt 0:00:05]} (19. Qc3 $5 {[%cal Rc1f4]}) 19... Qe5 {[%emt 0:01:45]} 20. Be3 {[%emt 0:00:06]} Bd6 {[%emt 0:00:51][%csl Gd6][%cal Re5h2]} 21. Qh4 {[%emt 0:00:38] Threatens to win with Bf4.} Kh8 $1 {[%emt 0:00:05]} 22. Rae1 {[%emt 0:00:49]} ({But not} 22. Qh6 Rg8 23. Bd4 Qb5 $17) (22. Bh6 $11) 22... Rg8 $1 $15 {[%emt 0:01:53] And now ...Rg4 would win.} 23. Bf4 {[%emt 0:01:48]} Qxb2 {[%emt 0:00:30] Strongly threatening ...Rg4.} 24. Bxd6 {[%emt 0:00:15]} cxd6 {[%emt 0:00:58]} (24... Rg4 $2 {[#]} 25. Qh5 $1 cxd6 26. Qxf7 $16) 25. Qxe4 {[%emt 0:00:49]} Rae8 {[%emt 0:00:40] Prevents Qe7.} 26. Qd3 {[%emt 0:01:23]} Rxe1 {[%emt 0:00:24]} 27. Rxe1 {[%emt 0:00:00]} Qxf6 {[%emt 0:00:01]} 28. Rf1 {[%emt 0:00:02]} Qg7 {[%emt 0:01:05]} ({Black should try} 28... Qe6 $15) 29. Rf2 $11 {[%emt 0:00:02] Active counter play! The position is equal.} Be6 {[%emt 0:01:36]} 30. Qxd6 {[%emt 0:00:36]} Bd5 {[%emt 0:00:03][%cal Rd5g2]} 31. g3 {[%emt 0:00:12]} Re8 {[%emt 0:00:04]} 32. Re2 {[%emt 0:00:26]} Rxe2 {[%emt 0:01:21]} 33. Qd8+ {[%emt 0:00:01]} Qg8 {[%emt 0:00:01]} 34. Qf6+ {[%emt 0:00:01]} Qg7 {[%emt 0:00:01]} 35. Qd8+ {[%emt 0:00:00]} Qg8 {[%emt 0:00:01]} 36. Qf6+ {[%emt 0:00:01]} Qg7 {[%emt 0:00:00]} 37. Qd8+ {[%emt 0:00:01] Weighted Error Value: White=0.09 (flawless) /Black=0.10 (very precise)} 1/2-1/2

[Event "FTX Crypto Cup MCCT 2022"]
[Site "Miami"]
[Date "2022.08.11"]
[Round "4.1"]
[White "Firouzja, Alireza"]
[Black "Duda, Jan-Krzysztof"]
[Result "1-0"]
[ECO "C65"]
[WhiteElo "2793"]
[BlackElo "2750"]
[Annotator "TA"]
[PlyCount "119"]
[EventDate "2022.08.10"]
[EventType "tourn"]
[EventCountry "USA"]
[SourceTitle "playchess.com"]
[Source "ChessBase"]
[SourceQuality "1"]
[TimeControl "900+10"]

{[%evp 9,119,17,28,12,11,12,16,1,16,24,17,27,32,20,22,18,6,11,29,8,18,3,3,0,11,0,2,0,8,0,0,0,9,8,24,22,33,8,11,0,7,11,43,34,37,31,108,72,102,102,110,110,102,94,102,101,101,91,97,39,34,27,12,0,0,0,8,0,77,75,62,67,76,35,34,35,42,44,46,22,50,24,44,21,22,27,286,237,281,281,319,277,254,152,152,152,141,127,29978,29980,29981,29982,29982,29983,29983,29984,29984,29985,29985,29986,29986,29987]} 1. e4 {[%emt 0:00:00]} e5 {[%emt 0:00:00]} 2. Nf3 {[%emt 0:00:02]} Nc6 {[%emt 0:00:01]} 3. Bb5 {[%emt 0:00:01]} Nf6 {[%emt 0:00:01]} 4. d3 {[%emt 0:00:03]} Bc5 {[%emt 0:00:02]} 5. Bxc6 {[%emt 0:00:01]} dxc6 {[%emt 0:00:01]} 6. Nbd2 {[%emt 0:00:01] C65: Ruy Lopez: Berlin Defence (3...Nf6), unusual lines and 4 0-0 Bc5.} Nd7 {[%emt 0:00:04]} 7. Nc4 {[%emt 0:00:11]} f6 {[%emt 0:00:08] 7...f6 scores better than 7...0-0.} 8. c3 {[%emt 0:00:01] The position is equal.} Nf8 {[%emt 0:00:23] [#]} 9. Be3 $146 {[%emt 0:01:24]} ({Predecessor:} 9. d4 exd4 10. cxd4 Be6 11. b3 Be7 12. O-O Ng6 13. Ne3 Qd7 14. Qc2 O-O 15. Rd1 {½-½ (52) Iljiushenok,I (2539)-Goryachkina,A (2592) Sochi 2020}) 9... Bb6 {[%emt 0:00:19]} 10. d4 {[%emt 0:00:29]} exd4 {[%emt 0:00:36]} 11. Nxd4 {[%emt 0:00:02]} Qe7 {[%emt 0:00:35]} 12. O-O {[%emt 0:01:02]} Bxd4 {[%emt 0:00:45]} 13. Bxd4 {[%emt 0:00:16]} (13. cxd4 Qxe4 14. f3 Qd5 $15) 13... Ne6 {[%emt 0:01:04]} 14. Ne3 {[%emt 0:04:15]} Nxd4 {[%emt 0:01:05]} 15. Qxd4 {[%emt 0:00:01]} O-O {[%emt 0:00:00]} 16. Rad1 {[%emt 0:00:17]} Be6 {[%emt 0:00:02]} 17. c4 {[%emt 0:00:01]} a5 {[%emt 0:00:07]} (17... Rfd8 $5 18. Qc3 b6 $11) 18. Qc3 {[%emt 0:00:43]} Qb4 {[%emt 0:00:26]} 19. Qc2 {[%emt 0:00:11]} Rfd8 {[%emt 0:00:41]} 20. h3 {[%emt 0:00:20]} Rd6 {[%emt 0:00:58]} 21. Rxd6 {[%emt 0:00:19]} cxd6 {[%emt 0:00:00]} 22. Rd1 {[%emt 0:00:02]} a4 {[%emt 0:00:33]} 23. a3 {[%emt 0:04:06]} Qc5 {[%emt 0:00:04]} 24. Rd3 {[%emt 0:01:10]} Kf7 {[%emt 0:00:13]} 25. Qd1 {[%emt 0:00:15]} Ke7 {[%emt 0:00:12]} 26. Nf5+ {[%emt 0:00:35]} Bxf5 {[%emt 0:00:02]} 27. exf5 {[%emt 0:00:00] Strongly threatening Qg4.} Qxf5 {[%emt 0:05:40]} (27... Rd8 $14) 28. Rxd6 $14 {[%emt 0:00:46][%mdl 4096] Endgame KQR-KQR} Re8 {[%emt 0:00:02]} 29. g4 {[%emt 0:00:23]} Qa5 {[%emt 0:00:42]} 30. Rd7+ {[%emt 0:00:34]} Kf8 {[%emt 0:00:02]} 31. Qd6+ $1 {[%emt 0:00:04]} Kg8 {[%emt 0:00:00]} 32. Rxb7 {[%emt 0:00:51]} Qe1+ {[%emt 0:00:05]} 33. Kg2 {[%emt 0:00:01]} Qe4+ {[%emt 0:00:03]} 34. Kh2 {[%emt 0:00:17] White is more active.} (34. Kg3 $16) 34... Qe2 {[%emt 0:02:15]} 35. Qg3 {[%emt 0:00:16]} Re5 {[%emt 0:00:16]} 36. Kg2 {[%emt 0:00:17]} h5 {[%emt 0:00:58]} 37. Qf3 {[%emt 0:00:06]} (37. gxh5 $2 Rg5 38. Qxg5 (38. Rb8+ $2 Kh7 $19) 38... fxg5 $19) 37... hxg4 {[%emt 0:00:13]} 38. Rb8+ {[%emt 0:00:20]} Kf7 {[%emt 0:00:04]} (38... Kh7 $1 $11 {keeps the balance.} 39. hxg4 Qxc4) 39. Qxe2 $1 $16 {[%emt 0:00:03] Chess con chili.} (39. Qxc6 {is a self mate.} gxh3+ 40. Kh1 Qf1+ 41. Kh2 Qxf2+ 42. Kxh3 Rh5+ 43. Kg4 Rh4#) (39. hxg4 Qxc4 40. Rb4 Qc2 $11) 39... Rxe2 {[%emt 0:00:06]} 40. hxg4 {[%emt 0:00:03] KR-KR} Re4 {[%emt 0:00:20]} 41. Rb4 {[%emt 0:00:07] aiming for Kf3.} Rxg4+ {[%emt 0:00:06]} 42. Kf3 {[%emt 0:00:01]} f5 {[%emt 0:00:02]} 43. Rxa4 {[%emt 0:00:01]} g5 {[%emt 0:00:03]} 44. Ra5 {[%emt 0:00:12]} (44. b3 $5 {[%cal Ra4a6]}) 44... Rf4+ {[%emt 0:00:10]} 45. Ke2 {[%emt 0:00:16] Rc5 is the strong threat.} Ke6 {[%emt 0:00:11]} 46. Rc5 {[%emt 0:00:07]} Kd6 {[%emt 0:00:02]} 47. b4 {[%emt 0:00:01]} g4 $2 {[%emt 0:00:08][%mdl 8192]} (47... Re4+ $1 $11 {and Black is okay.} 48. Kf1 Rf4) 48. a4 $18 {[%emt 0:00:24] Hoping for a5.} Re4+ {[%emt 0:02:32]} 49. Kf1 $1 {[%emt 0:00:02]} Rd4 {[%emt 0:00:24]} 50. a5 {[%emt 0:00:17] And now a6 would win.} ({Weaker is} 50. Rxf5 Rxc4 51. b5 Rxa4 $11) 50... f4 {[%emt 0:00:09]} 51. a6 {[%emt 0:00:15]} ({White should play} 51. Ke2 $18) 51... Rd1+ $16 {[%emt 0:00:04] [#]} 52. Kg2 $1 {[%emt 0:00:56] Intending a7 and mate.} Ra1 {[%emt 0:00:00] [#]} 53. Rf5 $1 {[%emt 0:00:09]} g3 $2 {[%emt 0:00:27][%mdl 8192]} (53... Rxa6 $16 54. c5+ (54. Rxf4 Ra2 $16) 54... Ke6 55. Rxf4 Kd5 56. Rxg4 Ra4) 54. Ra5 {[%emt 0:00:46] White mates.} Rxa5 {[%emt 0:00:32]} 55. bxa5 {[%emt 0:00:02] KP-KP} Kc7 {[%emt 0:00:00]} 56. fxg3 {[%emt 0:00:02]} fxg3 {[%emt 0:00:00]} 57. Kxg3 {[%emt 0:00:01]} Kb8 {[%emt 0:00:00]} 58. Kf4 {[%emt 0:00:02]} Ka7 {[%emt 0:00:00]} 59. Ke5 {[%emt 0:00:00]} Kxa6 {[%emt 0:00:03]} 60. Kd6 {[%emt 0:00:01] Weighted Error Value: White=0.08 (flawless) /Black=0.30} 1-0